[Event "Titled Tuesday Blitz June 6 Early 2023"]
[White "splendidkid"]
[Black "Omelja, Artem"]
[BlackFideId "14119846"]
[WhiteElo "2750"]
[BlackElo "2404"]
[Result "1-0"]
[Round "7"]
[TimeControl "180+2"]
[Date "2023.06.06"]
[WhiteClock "0:01:21"]
[BlackClock "0:00:06"]
[Board "57"]

1. d4 {[%clk 0:03:00]}  Nf6 {[%clk 0:02:59]} 2. c4 {[%clk 0:03:00]}  e6 {[%clk 0:02:58]} 3. Nf3 {[%clk 0:02:58]}  b6 {[%clk 0:02:57]} 4. g3 {[%clk 0:02:58]}  Bb7 {[%clk 0:02:38]} 5. Bg2 {[%clk 0:02:58]}  c5 {[%clk 0:02:37]} 6. d5 {[%clk 0:02:56]}  exd5 {[%clk 0:02:35]} 7. Nh4 {[%clk 0:02:56]}  Be7 {[%clk 0:02:33]} 8. Nc3 {[%clk 0:02:56]}  O-O {[%clk 0:02:33]} 9. Nf5 {[%clk 0:02:55]}  d6 {[%clk 0:02:31]} 10. Ne3 {[%clk 0:02:53]}  Nbd7 {[%clk 0:02:19]} 11. O-O {[%clk 0:02:50]}  Re8 {[%clk 0:02:18]} 12. Nexd5 {[%clk 0:02:41]}  Nxd5 {[%clk 0:02:18]} 13. Nxd5 {[%clk 0:02:40]}  Bf8 {[%clk 0:02:14]} 14. Nf6+ {[%clk 0:02:29]}  Nxf6 {[%clk 0:01:57]} 15. Bxb7 {[%clk 0:02:29]}  Rb8 {[%clk 0:01:57]} 16. Bg2 {[%clk 0:02:30]}  Qc7 {[%clk 0:01:56]} 17. Bg5 {[%clk 0:02:28]}  Be7 {[%clk 0:01:54]} 18. Qd3 {[%clk 0:02:26]}  h6 {[%clk 0:01:49]} 19. Bd2 {[%clk 0:02:25]}  Rbd8 {[%clk 0:01:49]} 20. Bc3 {[%clk 0:02:23]}  Nd7 {[%clk 0:01:49]} 21. Rab1 {[%clk 0:02:12]}  Bf6 {[%clk 0:01:46]} 22. Bd2 {[%clk 0:02:12]}  Ne5 {[%clk 0:01:45]} 23. Qc2 {[%clk 0:02:12]}  Nc6 {[%clk 0:01:44]} 24. e3 {[%clk 0:02:10]}  Ne5 {[%clk 0:01:12]} 25. Rfd1 {[%clk 0:02:07]}  Re7 {[%clk 0:00:46]} 26. Rbc1 {[%clk 0:01:59]}  Rde8 {[%clk 0:00:44]} 27. Be1 {[%clk 0:01:56]}  Rd8 {[%clk 0:00:32]} 28. b4 {[%clk 0:01:56]}  Nc6 {[%clk 0:00:30]} 29. a3 {[%clk 0:01:55]}  Ree8 {[%clk 0:00:28]} 30. Qa4 {[%clk 0:01:55]}  Ne5 {[%clk 0:00:28]} 31. h3 {[%clk 0:01:51]}  g6 {[%clk 0:00:27]} 32. f4 {[%clk 0:01:43]}  Nd7 {[%clk 0:00:27]} 33. Bf2 {[%clk 0:01:41]}  Bg7 {[%clk 0:00:24]} 34. Bf3 {[%clk 0:01:34]}  Nf6 {[%clk 0:00:23]} 35. Kg2 {[%clk 0:01:35]}  Ne4 {[%clk 0:00:20]} 36. Be1 {[%clk 0:01:36]}  f5 {[%clk 0:00:17]} 37. Rd3 {[%clk 0:01:36]}  Qd7 {[%clk 0:00:13]} 38. Qc2 {[%clk 0:01:35]}  g5 {[%clk 0:00:08]} 39. Rcd1 {[%clk 0:01:33]}  Qe6 {[%clk 0:00:08]} 40. Rd5 {[%clk 0:01:31]}  g4 {[%clk 0:00:08]} 41. hxg4 {[%clk 0:01:32]}  fxg4 {[%clk 0:00:09]} 42. Be2 {[%clk 0:01:31]}  h5 {[%clk 0:00:09]} 43. Bd3 {[%clk 0:01:31]}  Nf6 {[%clk 0:00:09]} 44. Rg5 {[%clk 0:01:28]}  d5 {[%clk 0:00:09]} 45. Bg6 {[%clk 0:01:26]}  Rf8 {[%clk 0:00:08]} 46. Re5 {[%clk 0:01:26]}  Qc6 {[%clk 0:00:07]} 47. cxd5 {[%clk 0:01:26]}  Nxd5 {[%clk 0:00:07]} 48. Rexd5 {[%clk 0:01:22]}  Rxd5 {[%clk 0:00:07]} 49. Qc4 {[%clk 0:01:22]}  Rd8 {[%clk 0:00:07]} 50. Be4 {[%clk 0:01:23]}  b5 {[%clk 0:00:06]} 51. Rxd5 {[%clk 0:01:21]} 1-0


[Site "https://www.chess.com"]

[Event "Titled Tuesday Blitz June 6 Early 2023"]
[White "Streltsov, Alexey"]
[Black "Khumalo, Keith"]
[WhiteFideId "24104434"]
[BlackFideId "14319470"]
[WhiteElo "2542"]
[BlackElo "2056"]
[Result "1-0"]
[Round "7"]
[TimeControl "180+2"]
[Date "2023.06.06"]
[WhiteClock "0:00:45"]
[BlackClock "0:01:34"]
[Board "59"]

1. d4 {[%clk 0:03:00]}  Nf6 {[%clk 0:02:57]} 2. Nc3 {[%clk 0:03:01]}  d5 {[%clk 0:02:57]} 3. Bf4 {[%clk 0:03:02]}  a6 {[%clk 0:02:57]} 4. e3 {[%clk 0:03:02]}  e6 {[%clk 0:02:56]} 5. g4 {[%clk 0:03:02]}  Bd6 {[%clk 0:02:54]} 6. g5 {[%clk 0:03:01]}  Nfd7 {[%clk 0:02:50]} 7. Bxd6 {[%clk 0:03:00]}  cxd6 {[%clk 0:02:51]} 8. h4 {[%clk 0:03:00]}  h6 {[%clk 0:02:44]} 9. f4 {[%clk 0:02:24]}  hxg5 {[%clk 0:02:38]} 10. fxg5 {[%clk 0:02:25]}  Nc6 {[%clk 0:02:38]} 11. Qf3 {[%clk 0:02:18]}  Nf8 {[%clk 0:02:37]} 12. O-O-O {[%clk 0:02:14]}  Bd7 {[%clk 0:02:30]} 13. Kb1 {[%clk 0:02:09]}  Qc7 {[%clk 0:02:30]} 14. Bd3 {[%clk 0:02:09]}  Nb4 {[%clk 0:02:26]} 15. g6 {[%clk 0:02:06]}  fxg6 {[%clk 0:02:21]} 16. h5 {[%clk 0:01:56]}  Nxd3 {[%clk 0:02:16]} 17. cxd3 {[%clk 0:01:57]}  O-O-O {[%clk 0:02:06]} 18. Rc1 {[%clk 0:01:57]}  Bc6 {[%clk 0:02:01]} 19. e4 {[%clk 0:01:58]}  Kb8 {[%clk 0:01:54]} 20. exd5 {[%clk 0:01:50]}  exd5 {[%clk 0:01:55]} 21. Nxd5 {[%clk 0:01:50]}  Qa5 {[%clk 0:01:49]} 22. Rxc6 {[%clk 0:01:13]}  bxc6 {[%clk 0:01:50]} 23. Nf4 {[%clk 0:01:14]}  Qe1+ {[%clk 0:01:49]} 24. Kc2 {[%clk 0:01:14]}  g5 {[%clk 0:01:41]} 25. Nge2 {[%clk 0:01:07]}  Qa5 {[%clk 0:01:41]} 26. Ng2 {[%clk 0:00:46]}  Ne6 {[%clk 0:01:40]} 27. Ne3 {[%clk 0:00:47]}  Rhe8 {[%clk 0:01:36]} 28. Nc4 {[%clk 0:00:46]}  Qxa2 {[%clk 0:01:35]} 29. Qxc6 {[%clk 0:00:45]}  Qa4+ {[%clk 0:01:34]} 30. Qxa4 {[%clk 0:00:45]} 1-0


[Site "https://www.chess.com"]

[Event "Titled Tuesday Blitz June 6 Early 2023"]
[White "Sharapov, Evgeny"]
[Black "Goltsev, Dmitry"]
[WhiteFideId "14103133"]
[BlackFideId "24176710"]
[WhiteElo "2367"]
[BlackElo "2356"]
[Result "1/2-1/2"]
[Round "7"]
[TimeControl "180+2"]
[Date "2023.06.06"]
[WhiteClock "0:00:32"]
[BlackClock "0:00:11"]
[Board "61"]

1. e4 {[%clk 0:03:00]}  e6 {[%clk 0:02:59]} 2. d4 {[%clk 0:02:59]}  d5 {[%clk 0:03:00]} 3. Nc3 {[%clk 0:02:59]}  c5 {[%clk 0:03:00]} 4. exd5 {[%clk 0:02:58]}  exd5 {[%clk 0:03:01]} 5. Bb5+ {[%clk 0:02:57]}  Nc6 {[%clk 0:03:01]} 6. Nf3 {[%clk 0:02:57]}  Nf6 {[%clk 0:03:01]} 7. O-O {[%clk 0:02:57]}  Be7 {[%clk 0:03:01]} 8. dxc5 {[%clk 0:02:56]}  Bxc5 {[%clk 0:03:01]} 9. Re1+ {[%clk 0:02:56]}  Be6 {[%clk 0:03:01]} 10. Be3 {[%clk 0:02:29]}  Bxe3 {[%clk 0:02:57]} 11. Rxe3 {[%clk 0:02:29]}  O-O {[%clk 0:02:57]} 12. Nd4 {[%clk 0:02:28]}  Qb6 {[%clk 0:02:53]} 13. Bxc6 {[%clk 0:02:22]}  bxc6 {[%clk 0:02:53]} 14. Nxe6 {[%clk 0:02:22]}  fxe6 {[%clk 0:02:54]} 15. Rxe6 {[%clk 0:02:22]}  Ng4 {[%clk 0:02:51]} 16. Rxc6 {[%clk 0:02:08]}  Qxf2+ {[%clk 0:02:28]} 17. Kh1 {[%clk 0:02:07]}  Rae8 {[%clk 0:01:37]} 18. h3 {[%clk 0:01:48]}  Ne3 {[%clk 0:01:24]} 19. Qe2 {[%clk 0:01:43]}  d4 {[%clk 0:01:17]} 20. Qxf2 {[%clk 0:01:35]}  Rxf2 {[%clk 0:01:18]} 21. Re1 {[%clk 0:01:24]}  dxc3 {[%clk 0:01:09]} 22. Rxc3 {[%clk 0:01:23]}  Rf1+ {[%clk 0:01:10]} 23. Rxf1 {[%clk 0:01:21]}  Nxf1 {[%clk 0:01:10]} 24. Rc7 {[%clk 0:01:17]}  a5 {[%clk 0:01:05]} 25. c4 {[%clk 0:01:12]}  Re2 {[%clk 0:01:00]} 26. Ra7 {[%clk 0:01:05]}  Rxb2 {[%clk 0:00:58]} 27. Rxa5 {[%clk 0:01:04]}  Rb1 {[%clk 0:00:50]} 28. c5 {[%clk 0:01:02]}  Rc1 {[%clk 0:00:48]} 29. Rb5 {[%clk 0:01:01]}  Ne3+ {[%clk 0:00:41]} 30. Kh2 {[%clk 0:01:00]}  Rc2 {[%clk 0:00:42]} 31. a4 {[%clk 0:00:58]}  Rxg2+ {[%clk 0:00:41]} 32. Kh1 {[%clk 0:00:58]}  Rc2 {[%clk 0:00:30]} 33. a5 {[%clk 0:00:58]}  Nd5 {[%clk 0:00:28]} 34. a6 {[%clk 0:00:50]}  Ra2 {[%clk 0:00:28]} 35. c6 {[%clk 0:00:46]}  Rxa6 {[%clk 0:00:13]} 36. Rxd5 {[%clk 0:00:46]}  Rxc6 {[%clk 0:00:13]} 37. Kg2 {[%clk 0:00:46]}  Kf7 {[%clk 0:00:12]} 38. Kg3 {[%clk 0:00:46]}  Kf6 {[%clk 0:00:12]} 39. Rd3 {[%clk 0:00:44]}  Rc5 {[%clk 0:00:11]} 40. h4 {[%clk 0:00:44]}  Re5 {[%clk 0:00:11]} 41. Rf3+ {[%clk 0:00:43]}  Rf5 {[%clk 0:00:10]} 42. Ra3 {[%clk 0:00:43]}  Re5 {[%clk 0:00:10]} 43. Ra6+ {[%clk 0:00:43]}  Kf5 {[%clk 0:00:10]} 44. Ra3 {[%clk 0:00:42]}  Re7 {[%clk 0:00:08]} 45. Ra5+ {[%clk 0:00:42]}  Kf6 {[%clk 0:00:05]} 46. Ra6+ {[%clk 0:00:42]}  Re6 {[%clk 0:00:06]} 47. Ra3 {[%clk 0:00:42]}  h5 {[%clk 0:00:05]} 48. Rb3 {[%clk 0:00:41]}  Re4 {[%clk 0:00:05]} 49. Rb6+ {[%clk 0:00:40]}  Kf5 {[%clk 0:00:05]} 50. Rb5+ {[%clk 0:00:40]}  Re5 {[%clk 0:00:05]} 51. Rb3 {[%clk 0:00:39]}  Re4 {[%clk 0:00:05]} 52. Rb5+ {[%clk 0:00:38]}  Kg6 {[%clk 0:00:04]} 53. Rb6+ {[%clk 0:00:38]}  Kh7 {[%clk 0:00:05]} 54. Rb3 {[%clk 0:00:35]}  Rg4+ {[%clk 0:00:05]} 55. Kh3 {[%clk 0:00:36]}  Kg6 {[%clk 0:00:06]} 56. Rb6+ {[%clk 0:00:35]}  Kf7 {[%clk 0:00:06]} 57. Rb7+ {[%clk 0:00:35]}  Ke8 {[%clk 0:00:07]} 58. Ra7 {[%clk 0:00:34]}  g6 {[%clk 0:00:07]} 59. Rb7 {[%clk 0:00:33]}  Kd8 {[%clk 0:00:07]} 60. Ra7 {[%clk 0:00:33]}  Kc8 {[%clk 0:00:06]} 61. Rg7 {[%clk 0:00:33]}  Kd8 {[%clk 0:00:06]} 62. Rf7 {[%clk 0:00:33]}  Ke8 {[%clk 0:00:06]} 63. Rg7 {[%clk 0:00:33]}  Kf8 {[%clk 0:00:07]} 64. Ra7 {[%clk 0:00:34]}  Re4 {[%clk 0:00:07]} 65. Rb7 {[%clk 0:00:33]}  Re7 {[%clk 0:00:06]} 66. Rxe7 {[%clk 0:00:29]}  Kxe7 {[%clk 0:00:07]} 67. Kg3 {[%clk 0:00:30]}  Ke6 {[%clk 0:00:07]} 68. Kf4 {[%clk 0:00:30]}  Kf6 {[%clk 0:00:07]} 69. Ke4 {[%clk 0:00:31]}  Ke6 {[%clk 0:00:04]} 70. Kf4 {[%clk 0:00:31]}  Kf7 {[%clk 0:00:04]} 71. Kg5 {[%clk 0:00:29]}  Kg7 {[%clk 0:00:04]} 72. Kf4 {[%clk 0:00:29]}  Kh6 {[%clk 0:00:05]} 73. Ke4 {[%clk 0:00:29]}  g5 {[%clk 0:00:04]} 74. hxg5+ {[%clk 0:00:29]}  Kxg5 {[%clk 0:00:05]} 75. Kf3 {[%clk 0:00:30]}  Kh4 {[%clk 0:00:06]} 76. Kg2 {[%clk 0:00:30]}  Kg4 {[%clk 0:00:06]} 77. Kh1 {[%clk 0:00:30]}  h4 {[%clk 0:00:07]} 78. Kg1 {[%clk 0:00:31]}  Kg3 {[%clk 0:00:08]} 79. Kh1 {[%clk 0:00:31]}  h3 {[%clk 0:00:09]} 80. Kg1 {[%clk 0:00:32]}  h2+ {[%clk 0:00:10]} 81. Kh1 {[%clk 0:00:32]}  Kh3 {[%clk 0:00:11]} 1/2-1/2


[Site "https://www.chess.com"]

[Event "Titled Tuesday Blitz June 6 Early 2023"]
[White "Hua, Lefong"]
[Black "Baches Garcia, Guillermo"]
[WhiteFideId "2602253"]
[BlackFideId "2209764"]
[WhiteElo "2637"]
[BlackElo "2516"]
[Result "1/2-1/2"]
[Round "7"]
[TimeControl "180+2"]
[Date "2023.06.06"]
[WhiteClock "0:00:32"]
[BlackClock "0:00:19"]
[Board "63"]

1. d4 {[%clk 0:03:00]}  d5 {[%clk 0:02:59]} 2. c4 {[%clk 0:03:01]}  e6 {[%clk 0:03:00]} 3. Nc3 {[%clk 0:03:01]}  h6 {[%clk 0:03:00]} 4. cxd5 {[%clk 0:03:01]}  exd5 {[%clk 0:03:00]} 5. e3 {[%clk 0:02:57]}  Nf6 {[%clk 0:02:55]} 6. Bd3 {[%clk 0:02:57]}  Be7 {[%clk 0:02:46]} 7. Nge2 {[%clk 0:02:58]}  O-O {[%clk 0:02:46]} 8. O-O {[%clk 0:02:58]}  b6 {[%clk 0:02:42]} 9. Ng3 {[%clk 0:02:53]}  Re8 {[%clk 0:02:38]} 10. Re1 {[%clk 0:02:49]}  Bb7 {[%clk 0:02:37]} 11. b3 {[%clk 0:02:43]}  Bf8 {[%clk 0:02:27]} 12. Bb2 {[%clk 0:02:42]}  Nbd7 {[%clk 0:02:23]} 13. Rc1 {[%clk 0:02:42]}  c5 {[%clk 0:02:16]} 14. dxc5 {[%clk 0:02:41]}  bxc5 {[%clk 0:02:16]} 15. Qc2 {[%clk 0:02:34]}  Ne5 {[%clk 0:02:07]} 16. Bf1 {[%clk 0:02:30]}  c4 {[%clk 0:02:01]} 17. Red1 {[%clk 0:02:26]}  Rc8 {[%clk 0:01:55]} 18. Qb1 {[%clk 0:02:15]}  Qa5 {[%clk 0:01:47]} 19. Nf5 {[%clk 0:01:56]}  Ba6 {[%clk 0:01:36]} 20. Nd4 {[%clk 0:01:49]}  Nd3 {[%clk 0:01:33]} 21. Bxd3 {[%clk 0:01:47]}  cxd3 {[%clk 0:01:34]} 22. Na4 {[%clk 0:01:35]}  Rxc1 {[%clk 0:01:06]} 23. Bxc1 {[%clk 0:01:35]}  Ne4 {[%clk 0:01:01]} 24. f3 {[%clk 0:01:35]}  Nc5 {[%clk 0:00:43]} 25. Bd2 {[%clk 0:01:20]}  Qd8 {[%clk 0:00:40]} 26. Nc3 {[%clk 0:01:09]}  Ne6 {[%clk 0:00:33]} 27. Ncb5 {[%clk 0:00:50]}  Nxd4 {[%clk 0:00:27]} 28. Nxd4 {[%clk 0:00:50]}  Bc5 {[%clk 0:00:27]} 29. Qb2 {[%clk 0:00:47]}  Qb6 {[%clk 0:00:26]} 30. Kf1 {[%clk 0:00:34]}  Bxd4 {[%clk 0:00:23]} 31. Qxd4 {[%clk 0:00:34]}  Qxd4 {[%clk 0:00:23]} 32. exd4 {[%clk 0:00:35]}  Re2 {[%clk 0:00:22]} 33. a4 {[%clk 0:00:30]}  f5 {[%clk 0:00:20]} 34. h4 {[%clk 0:00:26]}  Kf7 {[%clk 0:00:20]} 35. Kg1 {[%clk 0:00:24]}  Ke6 {[%clk 0:00:19]} 36. Re1 {[%clk 0:00:24]}  Rxe1+ {[%clk 0:00:18]} 37. Bxe1 {[%clk 0:00:23]}  g5 {[%clk 0:00:18]} 38. hxg5 {[%clk 0:00:24]}  hxg5 {[%clk 0:00:18]} 39. Kf2 {[%clk 0:00:22]}  g4 {[%clk 0:00:18]} 40. Ke3 {[%clk 0:00:21]}  gxf3 {[%clk 0:00:18]} 41. gxf3 {[%clk 0:00:21]}  Kf6 {[%clk 0:00:11]} 42. Kf4 {[%clk 0:00:21]}  Ke6 {[%clk 0:00:11]} 43. Kg5 {[%clk 0:00:21]}  d2 {[%clk 0:00:11]} 44. Bxd2 {[%clk 0:00:21]}  Bd3 {[%clk 0:00:11]} 45. a5 {[%clk 0:00:15]}  Bc2 {[%clk 0:00:11]} 46. b4 {[%clk 0:00:14]}  Bd3 {[%clk 0:00:11]} 47. Bf4 {[%clk 0:00:14]}  a6 {[%clk 0:00:11]} 48. Be5 {[%clk 0:00:14]}  Be2 {[%clk 0:00:11]} 49. f4 {[%clk 0:00:14]}  Bc4 {[%clk 0:00:11]} 50. Kg6 {[%clk 0:00:15]}  Bb5 {[%clk 0:00:11]} 51. Kg7 {[%clk 0:00:15]}  Bc4 {[%clk 0:00:12]} 52. Kf8 {[%clk 0:00:16]}  Bb5 {[%clk 0:00:12]} 53. Bc7 {[%clk 0:00:17]}  Bc4 {[%clk 0:00:12]} 54. Ke8 {[%clk 0:00:17]}  Bb5+ {[%clk 0:00:12]} 55. Kd8 {[%clk 0:00:17]}  Bc4 {[%clk 0:00:13]} 56. Kc8 {[%clk 0:00:18]}  Bb5 {[%clk 0:00:13]} 57. Kb7 {[%clk 0:00:18]}  Bc4 {[%clk 0:00:13]} 58. Be5 {[%clk 0:00:19]}  Bb5 {[%clk 0:00:14]} 59. Kb6 {[%clk 0:00:19]}  Bc4 {[%clk 0:00:14]} 60. Kc6 {[%clk 0:00:20]}  Bb5+ {[%clk 0:00:14]} 61. Kc5 {[%clk 0:00:21]}  Bc4 {[%clk 0:00:15]} 62. b5 {[%clk 0:00:21]}  Bxb5 {[%clk 0:00:15]} 63. Kb6 {[%clk 0:00:22]}  Bc4 {[%clk 0:00:15]} 64. Kb7 {[%clk 0:00:23]}  Bb5 {[%clk 0:00:16]} 65. Kb6 {[%clk 0:00:23]}  Bc4 {[%clk 0:00:16]} 66. Kc5 {[%clk 0:00:24]}  Bb5 {[%clk 0:00:16]} 67. Kb4 {[%clk 0:00:25]}  Bc4 {[%clk 0:00:17]} 68. Kc3 {[%clk 0:00:26]}  Bb5 {[%clk 0:00:17]} 69. Kd2 {[%clk 0:00:27]}  Bc4 {[%clk 0:00:17]} 70. Kc1 {[%clk 0:00:28]}  Bb5 {[%clk 0:00:18]} 71. Kb2 {[%clk 0:00:28]}  Bc4 {[%clk 0:00:18]} 72. Ka3 {[%clk 0:00:29]}  Bb5 {[%clk 0:00:18]} 73. Kb4 {[%clk 0:00:30]}  Bc4 {[%clk 0:00:19]} 74. Kc3 {[%clk 0:00:31]}  Bb5 {[%clk 0:00:19]} 75. Kb4 {[%clk 0:00:32]} 1/2-1/2


[Site "https://www.chess.com"]

[Event "Titled Tuesday Blitz June 6 Early 2023"]
[White "Perez, Maximiliano"]
[Black "Aarav Dengla"]
[WhiteFideId "117234"]
[BlackFideId "45059756"]
[WhiteElo "2334"]
[BlackElo "2288"]
[Result "1/2-1/2"]
[Round "7"]
[TimeControl "180+2"]
[Date "2023.06.06"]
[WhiteClock "0:01:25"]
[BlackClock "0:02:07"]
[Board "65"]

1. e4 {[%clk 0:03:00]}  c5 {[%clk 0:02:57]} 2. Nf3 {[%clk 0:03:00]}  d6 {[%clk 0:02:56]} 3. d4 {[%clk 0:03:01]}  cxd4 {[%clk 0:02:57]} 4. Nxd4 {[%clk 0:03:01]}  Nf6 {[%clk 0:02:57]} 5. Nc3 {[%clk 0:03:02]}  a6 {[%clk 0:02:57]} 6. Be2 {[%clk 0:03:02]}  e5 {[%clk 0:02:56]} 7. Nb3 {[%clk 0:03:03]}  Be7 {[%clk 0:02:56]} 8. Be3 {[%clk 0:03:04]}  O-O {[%clk 0:02:56]} 9. g4 {[%clk 0:03:04]}  Be6 {[%clk 0:02:55]} 10. g5 {[%clk 0:03:03]}  Nfd7 {[%clk 0:02:56]} 11. h4 {[%clk 0:03:03]}  Nc5 {[%clk 0:02:49]} 12. Qd2 {[%clk 0:02:59]}  Nc6 {[%clk 0:02:49]} 13. O-O-O {[%clk 0:02:59]}  Nb4 {[%clk 0:02:44]} 14. Nxc5 {[%clk 0:02:54]}  dxc5 {[%clk 0:02:45]} 15. a3 {[%clk 0:02:42]}  Nc6 {[%clk 0:02:42]} 16. Qxd8 {[%clk 0:02:39]}  Rfxd8 {[%clk 0:02:39]} 17. Rxd8+ {[%clk 0:02:23]}  Rxd8 {[%clk 0:02:39]} 18. Rd1 {[%clk 0:02:22]}  Nd4 {[%clk 0:02:39]} 19. Bxd4 {[%clk 0:02:01]}  cxd4 {[%clk 0:02:31]} 20. Nb1 {[%clk 0:02:01]}  h6 {[%clk 0:02:30]} 21. Rg1 {[%clk 0:02:00]}  hxg5 {[%clk 0:02:28]} 22. hxg5 {[%clk 0:02:01]}  Rc8 {[%clk 0:02:24]} 23. Nd2 {[%clk 0:02:00]}  g6 {[%clk 0:02:23]} 24. Kd1 {[%clk 0:01:57]}  Kg7 {[%clk 0:02:21]} 25. Bg4 {[%clk 0:01:57]}  Bxg4+ {[%clk 0:02:20]} 26. Rxg4 {[%clk 0:01:58]}  Rh8 {[%clk 0:02:21]} 27. Nf3 {[%clk 0:01:57]}  Bd6 {[%clk 0:02:20]} 28. Rg1 {[%clk 0:01:54]}  Rh3 {[%clk 0:02:19]} 29. Ke2 {[%clk 0:01:55]}  Kf8 {[%clk 0:02:18]} 30. Rd1 {[%clk 0:01:53]}  Ke7 {[%clk 0:02:19]} 31. a4 {[%clk 0:01:51]}  Ke6 {[%clk 0:02:17]} 32. c3 {[%clk 0:01:52]}  dxc3 {[%clk 0:02:14]} 33. bxc3 {[%clk 0:01:53]}  Rh8 {[%clk 0:02:14]} 34. Rb1 {[%clk 0:01:48]}  Rc8 {[%clk 0:02:15]} 35. Kd3 {[%clk 0:01:45]}  Rc7 {[%clk 0:02:15]} 36. Rb6 {[%clk 0:01:40]}  Ke7 {[%clk 0:02:11]} 37. Rb2 {[%clk 0:01:33]}  Rd7 {[%clk 0:02:10]} 38. Ke2 {[%clk 0:01:32]}  Rc7 {[%clk 0:02:09]} 39. Kd3 {[%clk 0:01:31]}  Ke6 {[%clk 0:02:08]} 40. Rb6 {[%clk 0:01:25]}  Ke7 {[%clk 0:02:07]} 41. Rb2 {[%clk 0:01:25]} 1/2-1/2


[Site "https://www.chess.com"]

[Event "Titled Tuesday Blitz June 6 Early 2023"]
[White "Iskusnyh, Sergei"]
[Black "Papayan, Oleg"]
[WhiteFideId "4120027"]
[BlackFideId "4193911"]
[WhiteElo "2492"]
[BlackElo "2167"]
[Result "1-0"]
[Round "7"]
[TimeControl "180+2"]
[Date "2023.06.06"]
[WhiteClock "0:00:12"]
[BlackClock "0:00:01"]
[Board "67"]

1. d4 {[%clk 0:03:00]}  Nf6 {[%clk 0:02:59]} 2. c4 {[%clk 0:03:00]}  e6 {[%clk 0:02:59]} 3. g3 {[%clk 0:03:00]}  h5 {[%clk 0:02:51]} 4. Nf3 {[%clk 0:02:57]}  h4 {[%clk 0:02:51]} 5. Nxh4 {[%clk 0:02:56]}  d5 {[%clk 0:02:51]} 6. Bg2 {[%clk 0:02:53]}  Be7 {[%clk 0:02:52]} 7. Nf3 {[%clk 0:02:52]}  Nc6 {[%clk 0:02:48]} 8. Nbd2 {[%clk 0:02:47]}  Ne4 {[%clk 0:02:23]} 9. O-O {[%clk 0:02:27]}  f5 {[%clk 0:02:20]} 10. Qa4 {[%clk 0:02:00]}  Bd7 {[%clk 0:02:18]} 11. Qb3 {[%clk 0:01:59]}  Na5 {[%clk 0:02:13]} 12. Qc2 {[%clk 0:01:58]}  Bf6 {[%clk 0:01:53]} 13. Nxe4 {[%clk 0:01:37]}  fxe4 {[%clk 0:01:50]} 14. Ne5 {[%clk 0:01:37]}  Bxe5 {[%clk 0:01:48]} 15. dxe5 {[%clk 0:01:36]}  Nxc4 {[%clk 0:01:48]} 16. Bxe4 {[%clk 0:01:35]}  Nxe5 {[%clk 0:01:48]} 17. Bf4 {[%clk 0:01:26]}  Nc6 {[%clk 0:01:41]} 18. Bg6+ {[%clk 0:01:24]}  Kf8 {[%clk 0:01:41]} 19. e4 {[%clk 0:01:20]}  d4 {[%clk 0:01:24]} 20. e5 {[%clk 0:01:12]}  Be8 {[%clk 0:01:24]} 21. Be4 {[%clk 0:01:10]}  Qe7 {[%clk 0:01:00]} 22. h4 {[%clk 0:01:07]}  Bh5 {[%clk 0:00:51]} 23. a3 {[%clk 0:00:59]}  Kf7 {[%clk 0:00:42]} 24. Rac1 {[%clk 0:00:52]}  Rhf8 {[%clk 0:00:42]} 25. b4 {[%clk 0:00:48]}  a6 {[%clk 0:00:39]} 26. Bg5 {[%clk 0:00:26]}  Qd7 {[%clk 0:00:30]} 27. Bxc6 {[%clk 0:00:26]}  bxc6 {[%clk 0:00:30]} 28. Qxc6 {[%clk 0:00:26]}  Qxc6 {[%clk 0:00:26]} 29. Rxc6 {[%clk 0:00:27]}  Kg6 {[%clk 0:00:22]} 30. Rxe6+ {[%clk 0:00:25]}  Kf5 {[%clk 0:00:22]} 31. Rc6 {[%clk 0:00:25]}  d3 {[%clk 0:00:18]} 32. f3 {[%clk 0:00:25]}  Kxe5 {[%clk 0:00:13]} 33. Rc5+ {[%clk 0:00:22]}  Kd4 {[%clk 0:00:10]} 34. Rfc1 {[%clk 0:00:22]}  Bf7 {[%clk 0:00:07]} 35. Bd2 {[%clk 0:00:19]}  Rfe8 {[%clk 0:00:07]} 36. Bc3+ {[%clk 0:00:18]}  Ke3 {[%clk 0:00:07]} 37. Re1+ {[%clk 0:00:18]}  Kxf3 {[%clk 0:00:07]} 38. Rf5+ {[%clk 0:00:16]}  Kxg3 {[%clk 0:00:08]} 39. Rxf7 {[%clk 0:00:14]}  Kxh4 {[%clk 0:00:03]} 40. Rxg7 {[%clk 0:00:14]}  Rad8 {[%clk 0:00:01]} 41. Kg2 {[%clk 0:00:12]}  d2 {[%clk 0:00:01]} 42. Rh1# {[%clk 0:00:12]} 1-0


[Site "https://www.chess.com"]

[Event "Titled Tuesday Blitz June 6 Early 2023"]
[White "Shohat, Yotam"]
[Black "Lehtosaari, Mauri"]
[WhiteFideId "2813955"]
[BlackFideId "501999"]
[WhiteElo "2226"]
[BlackElo "2480"]
[Result "0-1"]
[Round "7"]
[TimeControl "180+2"]
[Date "2023.06.06"]
[WhiteClock "0:00:28"]
[BlackClock "0:00:05"]
[Board "68"]

1. d4 {[%clk 0:02:58]}  d5 {[%clk 0:03:00]} 2. Nc3 {[%clk 0:02:48]}  Nf6 {[%clk 0:02:50]} 3. Bf4 {[%clk 0:02:47]}  a6 {[%clk 0:02:49]} 4. f3 {[%clk 0:02:38]}  Bf5 {[%clk 0:02:42]} 5. g4 {[%clk 0:02:37]}  Bg6 {[%clk 0:02:42]} 6. h4 {[%clk 0:02:36]}  h5 {[%clk 0:02:28]} 7. g5 {[%clk 0:02:31]}  Ng8 {[%clk 0:02:26]} 8. e3 {[%clk 0:02:29]}  e6 {[%clk 0:02:19]} 9. Bd3 {[%clk 0:02:29]}  Ne7 {[%clk 0:02:14]} 10. Nge2 {[%clk 0:02:06]}  Bxd3 {[%clk 0:01:48]} 11. Qxd3 {[%clk 0:02:07]}  Ng6 {[%clk 0:01:48]} 12. Bg3 {[%clk 0:02:05]}  Bd6 {[%clk 0:01:47]} 13. O-O-O {[%clk 0:02:03]}  Bxg3 {[%clk 0:01:45]} 14. Nxg3 {[%clk 0:02:04]}  Qd6 {[%clk 0:01:46]} 15. f4 {[%clk 0:01:49]}  Ne7 {[%clk 0:01:46]} 16. Rdf1 {[%clk 0:01:44]}  g6 {[%clk 0:01:45]} 17. e4 {[%clk 0:01:43]}  Nbc6 {[%clk 0:01:34]} 18. f5 {[%clk 0:01:26]}  exf5 {[%clk 0:00:41]} 19. exf5 {[%clk 0:01:24]}  O-O-O {[%clk 0:00:39]} 20. f6 {[%clk 0:01:21]}  Nf5 {[%clk 0:00:24]} 21. Nxf5 {[%clk 0:01:19]}  gxf5 {[%clk 0:00:25]} 22. Rxf5 {[%clk 0:01:12]}  Qe6 {[%clk 0:00:20]} 23. Rf2 {[%clk 0:00:57]}  Kb8 {[%clk 0:00:19]} 24. Re2 {[%clk 0:00:53]}  Qg4 {[%clk 0:00:19]} 25. b3 {[%clk 0:00:36]}  Nxd4 {[%clk 0:00:17]} 26. Rd2 {[%clk 0:00:36]}  Nc6 {[%clk 0:00:14]} 27. Nxd5 {[%clk 0:00:36]}  Rd6 {[%clk 0:00:12]} 28. Qc4 {[%clk 0:00:32]}  Qe6 {[%clk 0:00:05]} 29. Rhd1 {[%clk 0:00:28]}  Qe5 {[%clk 0:00:05]} 0-1


[Site "https://www.chess.com"]